[Event "*** Titled Tuesday Blitz"]
[Site "Chess.com"]
[Date "2021.03.02"]
[Round "9"]
[White "Frogo47"]
[Black "Szparu"]
[Result "0-1"]
[WhiteElo "2525"]
[BlackElo "2650"]
[TimeControl "180+1"]
[EndTime "11:47:53 PST"]
[Termination "Szparu won by resignation"]

1. e4 {[%clk 0:03:00.9]} 1... c5 {[%clk 0:02:55.7]} 2. Nf3 {[%clk 0:02:59.9]}
2... Nc6 {[%clk 0:02:50.3]} 3. Bb5 {[%clk 0:02:58.7]} 3... g6 {[%clk 0:02:47.7]}
4. O-O {[%clk 0:02:58.4]} 4... Bg7 {[%clk 0:02:47.7]} 5. Re1 {[%clk 0:02:58.1]}
5... e5 {[%clk 0:02:46.4]} 6. c3 {[%clk 0:02:56.4]} 6... Nge7 {[%clk 0:02:44.4]}
7. Na3 {[%clk 0:02:55.3]} 7... O-O {[%clk 0:02:42.9]} 8. Nc2 {[%clk 0:02:54.2]}
8... Qb6 {[%clk 0:02:27.9]} 9. a4 {[%clk 0:02:50.8]} 9... d6 {[%clk 0:02:20.8]}
10. h3 {[%clk 0:02:40.8]} 10... h6 {[%clk 0:02:15.8]} 11. d4 {[%clk 0:02:23.1]}
11... exd4 {[%clk 0:02:07.3]} 12. cxd4 {[%clk 0:02:22.5]} 12... cxd4 {[%clk
0:02:06.5]} 13. Bf4 {[%clk 0:02:13]} 13... Rd8 {[%clk 0:02:01]} 14. Qd2 {[%clk
0:02:06.6]} 14... g5 {[%clk 0:01:56.8]} 15. Bg3 {[%clk 0:01:54.1]} 15... a6
{[%clk 0:01:41.3]} 16. Bd3 {[%clk 0:01:46.3]} 16... Qxb2 {[%clk 0:01:32.5]} 17.
e5 {[%clk 0:01:27.2]} 17... Nf5 {[%clk 0:01:25.2]} 18. Bh2 {[%clk 0:01:22.1]}
18... Qc3 {[%clk 0:01:05.5]} 19. Qd1 {[%clk 0:01:05.2]} 19... Be6 {[%clk
0:01:02.7]} 20. g4 {[%clk 0:00:53.3]} 20... Nfe7 {[%clk 0:00:52.3]} 21. exd6
{[%clk 0:00:52.7]} 21... Nd5 {[%clk 0:00:51.9]} 22. Qe2 {[%clk 0:00:47.1]} 22...
Ndb4 {[%clk 0:00:47.7]} 23. Nxb4 {[%clk 0:00:39.7]} 23... Nxb4 {[%clk
0:00:45.8]} 24. Rad1 {[%clk 0:00:30.5]} 24... Nxd3 {[%clk 0:00:32.7]} 25. Qxd3
{[%clk 0:00:18.3]} 25... Bb3 {[%clk 0:00:24.6]} 26. Rd2 {[%clk 0:00:11.6]} 26...
Bxa4 {[%clk 0:00:23.2]} 27. Nxd4 {[%clk 0:00:02.3]} 27... Qxd3 {[%clk
0:00:17.1]} 28. Rxd3 {[%clk 0:00:03.2]} 28... Bd7 {[%clk 0:00:17.4]} 29. Nf5
{[%clk 0:00:02.9]} 29... Bxf5 {[%clk 0:00:16.5]} 30. gxf5 {[%clk 0:00:03.8]}
30... Rd7 {[%clk 0:00:17.4]} 31. Re7 {[%clk 0:00:03.6]} 31... Rad8 {[%clk
0:00:18]} 32. Rxd7 {[%clk 0:00:03.3]} 32... Rxd7 {[%clk 0:00:18.2]} 33. Re3
{[%clk 0:00:03.8]} 33... Kf8 {[%clk 0:00:18]} 34. Bg3 {[%clk 0:00:03]} 34... Bd4
{[%clk 0:00:17.9]} 35. Rd3 {[%clk 0:00:02.9]} 35... Bc5 {[%clk 0:00:18.3]} 36.
Kf1 {[%clk 0:00:03.8]} 36... b5 {[%clk 0:00:17.2]} 37. Rd5 {[%clk 0:00:03.5]}
37... Bb4 {[%clk 0:00:17.1]} 38. Ke2 {[%clk 0:00:04.4]} 38... f6 {[%clk
0:00:17.3]} 39. Kd3 {[%clk 0:00:04.2]} 39... Ke8 {[%clk 0:00:15.6]} 40. f3
{[%clk 0:00:04.7]} 40... Rb7 {[%clk 0:00:14.9]} 41. Ke4 {[%clk 0:00:05.1]} 41...
Kd7 {[%clk 0:00:15.1]} 42. Rd1 {[%clk 0:00:04.7]} 42... Rb8 {[%clk 0:00:15.1]}
43. Kd5 {[%clk 0:00:04.9]} 43... Rc8 {[%clk 0:00:14.5]} 44. Rd3 {[%clk
0:00:04.6]} 44... Rc5+ {[%clk 0:00:14.6]} 45. Kd4 {[%clk 0:00:05]} 45... Rxf5
{[%clk 0:00:14.3]} 46. Ke4 {[%clk 0:00:05.4]} 46... Rc5 {[%clk 0:00:14.5]} 47.
Rd1 {[%clk 0:00:04.3]} 47... f5+ {[%clk 0:00:14]} 48. Kd3 {[%clk 0:00:03.8]}
48... f4 {[%clk 0:00:14.4]} 49. Bf2 {[%clk 0:00:03.4]} 49... Rd5+ {[%clk
0:00:14.6]} 50. Ke2 {[%clk 0:00:04.3]} 50... Rxd1 {[%clk 0:00:14.4]} 51. Kxd1
{[%clk 0:00:05.2]} 51... Bxd6 {[%clk 0:00:14.8]} 0-1

[Event "*** Titled Tuesday Blitz"]
[Site "Chess.com"]
[Date "2021.03.02"]
[Round "9"]
[White "TimKett"]
[Black "ARTHURMOTIVATOR"]
[Result "1/2-1/2"]
[WhiteElo "2181"]
[BlackElo "2317"]
[TimeControl "180+1"]
[EndTime "11:47:55 PST"]
[Termination "Game drawn - insufficient material"]

1. e4 {[%clk 0:02:38.7]} 1... e5 {[%clk 0:02:57.8]} 2. f4 {[%clk 0:02:38.4]}
2... d5 {[%clk 0:02:56]} 3. exd5 {[%clk 0:02:37.9]} 3... e4 {[%clk 0:02:56.3]}
4. d3 {[%clk 0:02:37.7]} 4... Nf6 {[%clk 0:02:55.1]} 5. dxe4 {[%clk 0:02:37.7]}
5... Nxe4 {[%clk 0:02:53.9]} 6. Nf3 {[%clk 0:02:38.3]} 6... Bc5 {[%clk
0:02:47.7]} 7. Qe2 {[%clk 0:02:38.3]} 7... f5 {[%clk 0:02:43.4]} 8. Nc3 {[%clk
0:02:24.9]} 8... Bb4 {[%clk 0:02:38.1]} 9. Bd2 {[%clk 0:02:21.5]} 9... Bxc3
{[%clk 0:02:36.4]} 10. Bxc3 {[%clk 0:02:21.5]} 10... O-O {[%clk 0:02:36.9]} 11.
O-O-O {[%clk 0:02:03.2]} 11... Nxc3 {[%clk 0:02:34.8]} 12. bxc3 {[%clk
0:02:03.3]} 12... Qd6 {[%clk 0:02:35.2]} 13. Ne5 {[%clk 0:01:40.3]} 13... Qa3+
{[%clk 0:02:31.4]} 14. Kb1 {[%clk 0:01:40.5]} 14... Qxc3 {[%clk 0:02:29.1]} 15.
Qc4 {[%clk 0:01:36]} 15... Qxc4 {[%clk 0:02:25.8]} 16. Bxc4 {[%clk 0:01:35.8]}
16... Kh8 {[%clk 0:02:20.7]} 17. d6 {[%clk 0:01:35.2]} 17... cxd6 {[%clk
0:02:01.9]} 18. Nf7+ {[%clk 0:01:27.1]} 18... Kg8 {[%clk 0:02:01.1]} 19. Nxd6+
{[%clk 0:01:27.2]} 19... Kh8 {[%clk 0:02:00.6]} 20. Nxc8 {[%clk 0:00:57.1]}
20... Rxc8 {[%clk 0:01:58.2]} 21. Be6 {[%clk 0:00:57.1]} 21... Rf8 {[%clk
0:01:55.1]} 22. Bxf5 {[%clk 0:00:57.1]} 22... Na6 {[%clk 0:01:51.7]} 23. Bd3
{[%clk 0:00:47.9]} 23... Rxf4 {[%clk 0:01:48.1]} 24. Bxa6 {[%clk 0:00:46.9]}
24... bxa6 {[%clk 0:01:47.2]} 25. Rhf1 {[%clk 0:00:44.9]} 25... Rb8+ {[%clk
0:01:38.3]} 26. Kc1 {[%clk 0:00:44.9]} 26... Ra4 {[%clk 0:01:34]} 27. Rf7 {[%clk
0:00:39.4]} 27... Rxa2 {[%clk 0:01:30.8]} 28. Rdd7 {[%clk 0:00:34.7]} 28... Rc8
{[%clk 0:01:19.9]} 29. Rc7 {[%clk 0:00:30]} 29... Rg8 {[%clk 0:01:14.6]} 30.
Rxa7 {[%clk 0:00:27.4]} 30... Ra1+ {[%clk 0:01:14.5]} 31. Kd2 {[%clk 0:00:20.1]}
31... Rh1 {[%clk 0:01:11.6]} 32. h3 {[%clk 0:00:19.1]} 32... Rg1 {[%clk
0:01:09.8]} 33. Rf2 {[%clk 0:00:18.8]} 33... Ra1 {[%clk 0:01:08]} 34. Raf7
{[%clk 0:00:16.5]} 34... h6 {[%clk 0:01:04.8]} 35. Rf8 {[%clk 0:00:16.6]} 35...
Rxf8 {[%clk 0:01:00.2]} 36. Rxf8+ {[%clk 0:00:15.5]} 36... Kh7 {[%clk
0:01:01.1]} 37. c4 {[%clk 0:00:14.8]} 37... Ra2+ {[%clk 0:00:57.8]} 38. Kd3
{[%clk 0:00:15.1]} 38... Rxg2 {[%clk 0:00:58.7]} 39. c5 {[%clk 0:00:15.4]} 39...
Rg3+ {[%clk 0:00:57.8]} 40. Kd4 {[%clk 0:00:15.2]} 40... Rxh3 {[%clk 0:00:58.4]}
41. c6 {[%clk 0:00:15.4]} 41... Rh4+ {[%clk 0:00:54.6]} 42. Kd5 {[%clk
0:00:14.8]} 42... Rh1 {[%clk 0:00:44.7]} 43. c7 {[%clk 0:00:14.7]} 43... Rd1+
{[%clk 0:00:45.6]} 44. Ke4 {[%clk 0:00:13.4]} 44... Re1+ {[%clk 0:00:43.9]} 45.
Kd3 {[%clk 0:00:13]} 45... Rc1 {[%clk 0:00:40.6]} 46. c8=Q {[%clk 0:00:12.1]}
46... Rxc8 {[%clk 0:00:41.5]} 47. Rxc8 {[%clk 0:00:12.1]} 47... Kg6 {[%clk
0:00:42.1]} 48. Ke4 {[%clk 0:00:12.4]} 48... Kg5 {[%clk 0:00:41.8]} 49. Rc5+
{[%clk 0:00:10.2]} 49... Kg4 {[%clk 0:00:41.2]} 50. Rc7 {[%clk 0:00:07.6]} 50...
g5 {[%clk 0:00:36.5]} 51. Rc6 {[%clk 0:00:05.2]} 51... h5 {[%clk 0:00:36.8]} 52.
Rxa6 {[%clk 0:00:05.1]} 52... h4 {[%clk 0:00:33.4]} 53. Ra1 {[%clk 0:00:05.7]}
53... h3 {[%clk 0:00:28.8]} 54. Rg1+ {[%clk 0:00:05]} 54... Kh4 {[%clk
0:00:28.9]} 55. Kf3 {[%clk 0:00:04.7]} 55... h2 {[%clk 0:00:28]} 56. Rh1 {[%clk
0:00:04.4]} 56... Kh3 {[%clk 0:00:28.5]} 57. Rxh2+ {[%clk 0:00:03.6]} 57... Kxh2
{[%clk 0:00:28]} 58. Kg4 {[%clk 0:00:03.9]} 58... Kg2 {[%clk 0:00:28.4]} 59.
Kxg5 {[%clk 0:00:04.5]} 1/2-1/2

[Event "*** Titled Tuesday Blitz"]
[Site "Chess.com"]
[Date "2021.03.02"]
[Round "9"]
[White "Natalya_Buksa"]
[Black "TheBigBoss04"]
[Result "0-1"]
[WhiteElo "2523"]
[BlackElo "2758"]
[TimeControl "180+1"]
[EndTime "11:47:56 PST"]
[Termination "TheBigBoss04 won by checkmate"]

1. d4 {[%clk 0:02:58.6]} 1... Nf6 {[%clk 0:02:59.3]} 2. Nc3 {[%clk 0:02:58.5]}
2... d5 {[%clk 0:02:57.9]} 3. Bf4 {[%clk 0:02:58.9]} 3... a6 {[%clk 0:02:54]} 4.
e3 {[%clk 0:02:58.6]} 4... Bg4 {[%clk 0:02:53.9]} 5. Be2 {[%clk 0:02:54.6]} 5...
Bxe2 {[%clk 0:02:53.5]} 6. Ngxe2 {[%clk 0:02:46.3]} 6... e6 {[%clk 0:02:54]} 7.
O-O {[%clk 0:02:46.1]} 7... c5 {[%clk 0:02:52.9]} 8. dxc5 {[%clk 0:02:35.4]}
8... Bxc5 {[%clk 0:02:52]} 9. Na4 {[%clk 0:02:35.3]} 9... Be7 {[%clk 0:02:50]}
10. Qd3 {[%clk 0:02:24.2]} 10... Nc6 {[%clk 0:02:47.7]} 11. c4 {[%clk
0:02:23.1]} 11... O-O {[%clk 0:02:40.3]} 12. b3 {[%clk 0:01:46.1]} 12... Nb4
{[%clk 0:02:28.6]} 13. Qd1 {[%clk 0:01:25.5]} 13... dxc4 {[%clk 0:02:23]} 14.
bxc4 {[%clk 0:01:26.4]} 14... Rc8 {[%clk 0:02:19]} 15. Qb3 {[%clk 0:01:25.2]}
15... Qd3 {[%clk 0:02:16.8]} 16. Qxd3 {[%clk 0:01:02.2]} 16... Nxd3 {[%clk
0:02:17.7]} 17. Nb6 {[%clk 0:00:57.3]} 17... Rc6 {[%clk 0:02:09.8]} 18. Rab1
{[%clk 0:00:57.7]} 18... Nb4 {[%clk 0:01:56]} 19. Na4 {[%clk 0:00:39.8]} 19...
Rxc4 {[%clk 0:01:55.1]} 20. Nac3 {[%clk 0:00:40.1]} 20... b5 {[%clk 0:01:52.4]}
21. Be5 {[%clk 0:00:39.4]} 21... Nc6 {[%clk 0:01:50.3]} 22. Bg3 {[%clk
0:00:38.4]} 22... Nh5 {[%clk 0:01:40.1]} 23. Rfd1 {[%clk 0:00:37.5]} 23... Nxg3
{[%clk 0:01:38.9]} 24. hxg3 {[%clk 0:00:38.4]} 24... Bf6 {[%clk 0:01:38.2]} 25.
Rb3 {[%clk 0:00:38]} 25... Rc8 {[%clk 0:01:29.1]} 26. Nb1 {[%clk 0:00:35.8]}
26... g5 {[%clk 0:01:23.1]} 27. a3 {[%clk 0:00:33.8]} 27... Rc2 {[%clk
0:01:19.4]} 28. Kf1 {[%clk 0:00:33.9]} 28... Kg7 {[%clk 0:01:05.1]} 29. g4
{[%clk 0:00:33.6]} 29... Ne5 {[%clk 0:01:03.5]} 30. f3 {[%clk 0:00:28.3]} 30...
Nc4 {[%clk 0:00:49.1]} 31. Ng3 {[%clk 0:00:24.9]} 31... Be5 {[%clk 0:00:42]} 32.
Ne4 {[%clk 0:00:24.1]} 32... h6 {[%clk 0:00:39.8]} 33. Nbd2 {[%clk 0:00:12.8]}
33... Nb2 {[%clk 0:00:34.1]} 34. Rb1 {[%clk 0:00:09.6]} 34... f5 {[%clk
0:00:31.9]} 35. Nd6 {[%clk 0:00:06.1]} 35... R8c6 {[%clk 0:00:25.1]} 36. Ne8+
{[%clk 0:00:05.7]} 36... Kf7 {[%clk 0:00:24.2]} 37. gxf5 {[%clk 0:00:06.2]}
37... Kxe8 {[%clk 0:00:23.9]} 38. Ne4 {[%clk 0:00:05.6]} 38... exf5 {[%clk
0:00:23.5]} 39. Nf2 {[%clk 0:00:05.8]} 39... Bg3 {[%clk 0:00:21.2]} 40. Nd1
{[%clk 0:00:03.4]} 40... Nxd1 {[%clk 0:00:19]} 41. Rxd1 {[%clk 0:00:04.3]} 41...
Rf2+ {[%clk 0:00:19.2]} 42. Kg1 {[%clk 0:00:04.3]} 42... Rcc2 {[%clk 0:00:19.1]}
43. Rbd3 {[%clk 0:00:04.4]} 43... Rxg2+ {[%clk 0:00:19]} 44. Kh1 {[%clk
0:00:04.8]} 44... Rh2+ {[%clk 0:00:18.1]} 45. Kg1 {[%clk 0:00:05.1]} 45... Kf7
{[%clk 0:00:15.5]} 46. Rd7+ {[%clk 0:00:04.4]} 46... Kg6 {[%clk 0:00:15.5]} 47.
Ra7 {[%clk 0:00:04]} 47... Rcg2+ {[%clk 0:00:14.5]} 48. Kf1 {[%clk 0:00:04.3]}
48... Rf2+ {[%clk 0:00:13.8]} 49. Kg1 {[%clk 0:00:04.1]} 49... Rd2 {[%clk
0:00:11.6]} 50. Rxa6+ {[%clk 0:00:03.8]} 50... Kh5 {[%clk 0:00:12.3]} 51. Ra7
{[%clk 0:00:02.7]} 51... Rxd1# {[%clk 0:00:11.9]} 0-1

[Event "*** Titled Tuesday Blitz"]
[Site "Chess.com"]
[Date "2021.03.02"]
[Round "9"]
[White "Kapibara_Warri0r"]
[Black "The_filthy"]
[Result "1/2-1/2"]
[WhiteElo "2227"]
[BlackElo "2333"]
[TimeControl "180+1"]
[EndTime "11:47:57 PST"]
[Termination "Game drawn by repetition"]

1. d4 {[%clk 0:03:00.9]} 1... d5 {[%clk 0:02:57.5]} 2. c4 {[%clk 0:03:01]} 2...
c6 {[%clk 0:02:57.1]} 3. cxd5 {[%clk 0:02:59.2]} 3... cxd5 {[%clk 0:02:56.8]} 4.
Bf4 {[%clk 0:02:59.3]} 4... Nc6 {[%clk 0:02:56.5]} 5. e3 {[%clk 0:02:57.2]} 5...
Nf6 {[%clk 0:02:55.3]} 6. Bd3 {[%clk 0:02:49.6]} 6... g6 {[%clk 0:02:54.6]} 7.
Ne2 {[%clk 0:02:48.2]} 7... Bg7 {[%clk 0:02:54.9]} 8. Nbc3 {[%clk 0:02:48.1]}
8... O-O {[%clk 0:02:55.2]} 9. O-O {[%clk 0:02:48.6]} 9... Nh5 {[%clk
0:02:52.6]} 10. Rc1 {[%clk 0:02:45.6]} 10... Nxf4 {[%clk 0:02:52.6]} 11. Nxf4
{[%clk 0:02:46.5]} 11... e6 {[%clk 0:02:50.1]} 12. Bb1 {[%clk 0:02:45.4]} 12...
a6 {[%clk 0:02:49.5]} 13. Na4 {[%clk 0:02:36.4]} 13... Bd7 {[%clk 0:02:38.2]}
14. Nc5 {[%clk 0:02:33.6]} 14... Rb8 {[%clk 0:02:37.6]} 15. a3 {[%clk
0:02:24.3]} 15... Na5 {[%clk 0:02:18.5]} 16. b3 {[%clk 0:02:08.8]} 16... Qe7
{[%clk 0:02:03.7]} 17. Ba2 {[%clk 0:01:59.1]} 17... Rfc8 {[%clk 0:01:54.9]} 18.
b4 {[%clk 0:01:48]} 18... Nc6 {[%clk 0:01:43.8]} 19. Bxd5 {[%clk 0:01:43]} 19...
exd5 {[%clk 0:01:40.6]} 20. Nxd5 {[%clk 0:01:43]} 20... Qd8 {[%clk 0:01:29.2]}
21. Nxd7 {[%clk 0:01:41.9]} 21... Qxd7 {[%clk 0:01:29]} 22. Nb6 {[%clk
0:01:42.8]} 22... Qd8 {[%clk 0:01:25]} 23. Nxc8 {[%clk 0:01:43.2]} 23... Rxc8
{[%clk 0:01:24.1]} 24. d5 {[%clk 0:01:26.8]} 24... Ne5 {[%clk 0:01:16]} 25. Rxc8
{[%clk 0:01:25.7]} 25... Qxc8 {[%clk 0:01:16.5]} 26. Qc1 {[%clk 0:01:26.5]}
26... Nc4 {[%clk 0:01:15.4]} 27. a4 {[%clk 0:01:08.4]} 27... b5 {[%clk
0:01:13.6]} 28. axb5 {[%clk 0:01:09.3]} 28... axb5 {[%clk 0:01:13.6]} 29. Rd1
{[%clk 0:01:08.3]} 29... Be5 {[%clk 0:01:10.5]} 30. e4 {[%clk 0:01:01.7]} 30...
Qg4 {[%clk 0:01:04.6]} 31. Qc2 {[%clk 0:00:32.1]} 31... h5 {[%clk 0:00:50.6]}
32. g3 {[%clk 0:00:31.6]} 32... h4 {[%clk 0:00:49]} 33. Re1 {[%clk 0:00:14.7]}
33... hxg3 {[%clk 0:00:43.7]} 34. hxg3 {[%clk 0:00:15.6]} 34... Bd4 {[%clk
0:00:42.2]} 35. Kg2 {[%clk 0:00:14]} 35... Ne5 {[%clk 0:00:39.4]} 36. Qe2 {[%clk
0:00:13.6]} 36... Qd7 {[%clk 0:00:32.7]} 37. Rd1 {[%clk 0:00:11.4]} 37... Bb6
{[%clk 0:00:29.8]} 38. d6 {[%clk 0:00:11.6]} 38... g5 {[%clk 0:00:25.7]} 39. Qh5
{[%clk 0:00:10.4]} 39... f6 {[%clk 0:00:16.6]} 40. f4 {[%clk 0:00:10.9]} 40...
Nc4 {[%clk 0:00:14.4]} 41. Qg6+ {[%clk 0:00:10.2]} 41... Kf8 {[%clk 0:00:11.4]}
42. Qxf6+ {[%clk 0:00:10.4]} 42... Kg8 {[%clk 0:00:11.8]} 43. Qxg5+ {[%clk
0:00:10.3]} 43... Kf8 {[%clk 0:00:12.2]} 44. Qf6+ {[%clk 0:00:09.5]} 44... Kg8
{[%clk 0:00:12.4]} 45. Rd3 {[%clk 0:00:07.3]} 45... Qg4 {[%clk 0:00:10.3]} 46.
d7 {[%clk 0:00:04]} 46... Qe2+ {[%clk 0:00:10.2]} 47. Kh3 {[%clk 0:00:04.5]}
47... Qxd3 {[%clk 0:00:07.4]} 48. Qg6+ {[%clk 0:00:04.5]} 48... Kf8 {[%clk
0:00:07.1]} 49. Qf6+ {[%clk 0:00:04.7]} 49... Kg8 {[%clk 0:00:07.1]} 50. Qe6+
{[%clk 0:00:05.1]} 50... Kg7 {[%clk 0:00:06.3]} 51. Qe7+ {[%clk 0:00:05.1]}
51... Kg8 {[%clk 0:00:06.7]} 52. Qe6+ {[%clk 0:00:05.2]} 52... Kg7 {[%clk
0:00:06.8]} 53. Qe7+ {[%clk 0:00:05.5]} 53... Kg8 {[%clk 0:00:06.5]} 54. Qe6+
{[%clk 0:00:05.7]} 1/2-1/2

[Event "*** Titled Tuesday Blitz"]
[Site "Chess.com"]
[Date "2021.03.02"]
[Round "9"]
[White "francyIM"]
[Black "ChristopherYoo"]
[Result "1/2-1/2"]
[WhiteElo "2708"]
[BlackElo "2890"]
[TimeControl "180+1"]
[EndTime "11:48:01 PST"]
[Termination "Game drawn by repetition"]

1. Nf3 {[%clk 0:02:57]} 1... Nf6 {[%clk 0:02:59]} 2. g3 {[%clk 0:02:48.4]} 2...
e6 {[%clk 0:02:58.2]} 3. b3 {[%clk 0:02:49.3]} 3... Be7 {[%clk 0:02:57.7]} 4.
Bb2 {[%clk 0:02:43.7]} 4... O-O {[%clk 0:02:57.9]} 5. Bg2 {[%clk 0:02:44.3]}
5... d5 {[%clk 0:02:58.2]} 6. O-O {[%clk 0:02:44.8]} 6... b6 {[%clk 0:02:58.7]}
7. d3 {[%clk 0:02:45.3]} 7... Bb7 {[%clk 0:02:58.5]} 8. Nbd2 {[%clk 0:02:46.1]}
8... Nbd7 {[%clk 0:02:58.8]} 9. c4 {[%clk 0:02:41.8]} 9... c5 {[%clk 0:02:58.1]}
10. a3 {[%clk 0:02:42.1]} 10... Qc7 {[%clk 0:02:57.3]} 11. e3 {[%clk 0:02:41]}
11... Rfd8 {[%clk 0:02:52.6]} 12. Qe2 {[%clk 0:02:35.3]} 12... Rac8 {[%clk
0:02:47.8]} 13. Ne1 {[%clk 0:02:31.8]} 13... Qb8 {[%clk 0:02:44.9]} 14. f4
{[%clk 0:02:31.6]} 14... Qa8 {[%clk 0:02:42.5]} 15. Nef3 {[%clk 0:02:31.5]}
15... Ng4 {[%clk 0:02:10.8]} 16. e4 {[%clk 0:02:24.2]} 16... dxe4 {[%clk
0:02:03.2]} 17. dxe4 {[%clk 0:02:25.1]} 17... Bf6 {[%clk 0:02:02.3]} 18. e5
{[%clk 0:02:20.5]} 18... Be7 {[%clk 0:02:02.1]} 19. Rad1 {[%clk 0:02:19.5]}
19... h5 {[%clk 0:01:51.8]} 20. Rfe1 {[%clk 0:02:09.3]} 20... Nb8 {[%clk
0:01:50.2]} 21. Nf1 {[%clk 0:01:55.2]} 21... Nc6 {[%clk 0:01:48.3]} 22. h3
{[%clk 0:01:53.7]} 22... Nh6 {[%clk 0:01:47.8]} 23. Ne3 {[%clk 0:01:48.2]} 23...
Na5 {[%clk 0:01:44.1]} 24. Rxd8+ {[%clk 0:01:41.6]} 24... Rxd8 {[%clk
0:01:43.3]} 25. Nd2 {[%clk 0:01:37.9]} 25... Bxg2 {[%clk 0:01:39.5]} 26. Nxg2
{[%clk 0:01:38.8]} 26... Nf5 {[%clk 0:01:38.1]} 27. Kh2 {[%clk 0:01:27.3]} 27...
Nc6 {[%clk 0:01:22.9]} 28. Nf3 {[%clk 0:01:24.5]} 28... h4 {[%clk 0:01:21.5]}
29. g4 {[%clk 0:01:20.9]} 29... Nfd4 {[%clk 0:01:21.2]} 30. Nxd4 {[%clk
0:01:12.4]} 30... Nxd4 {[%clk 0:01:22.1]} 31. Bxd4 {[%clk 0:01:10.8]} 31... Rxd4
{[%clk 0:01:17.1]} 32. Rd1 {[%clk 0:01:02]} 32... Qd8 {[%clk 0:01:15.7]} 33.
Rxd4 {[%clk 0:00:59.9]} 33... Qxd4 {[%clk 0:01:11.2]} 34. a4 {[%clk 0:00:58.9]}
34... g5 {[%clk 0:01:05.1]} 35. Qe3 {[%clk 0:00:52.3]} 35... Qxe3 {[%clk
0:00:56.9]} 36. Nxe3 {[%clk 0:00:51.6]} 36... gxf4 {[%clk 0:00:57.5]} 37. Nf1
{[%clk 0:00:51.6]} 37... Kg7 {[%clk 0:00:43.3]} 38. Nd2 {[%clk 0:00:48.7]} 38...
f6 {[%clk 0:00:43.3]} 39. Kg2 {[%clk 0:00:48.9]} 39... f5 {[%clk 0:00:37.8]} 40.
Nf3 {[%clk 0:00:46.1]} 40... Kg6 {[%clk 0:00:36]} 41. Kh2 {[%clk 0:00:31.9]}
41... Bd8 {[%clk 0:00:34.2]} 42. Kg2 {[%clk 0:00:32.2]} 42... a6 {[%clk
0:00:33.4]} 43. Kh2 {[%clk 0:00:30.8]} 43... Be7 {[%clk 0:00:27.1]} 44. Kg2
{[%clk 0:00:27.9]} 44... Kf7 {[%clk 0:00:27.3]} 45. Kf2 {[%clk 0:00:27]} 45...
Ke8 {[%clk 0:00:23.7]} 46. Ke2 {[%clk 0:00:23.4]} 46... Kd7 {[%clk 0:00:22.1]}
47. Kf2 {[%clk 0:00:20.4]} 47... Kc6 {[%clk 0:00:19.7]} 48. gxf5 {[%clk
0:00:20.5]} 48... exf5 {[%clk 0:00:19.2]} 49. Ke2 {[%clk 0:00:21.4]} 49... Kd7
{[%clk 0:00:18.6]} 50. Kd3 {[%clk 0:00:21.9]} 50... Ke6 {[%clk 0:00:18.3]} 51.
Ke2 {[%clk 0:00:22.3]} 51... Bd8 {[%clk 0:00:18.1]} 52. Kd3 {[%clk 0:00:22.8]}
52... Bc7 {[%clk 0:00:17.4]} 53. Nxh4 {[%clk 0:00:23.1]} 53... Bxe5 {[%clk
0:00:15.9]} 54. Nf3 {[%clk 0:00:24]} 54... Bf6 {[%clk 0:00:15]} 55. Kc2 {[%clk
0:00:24.9]} 55... Kf7 {[%clk 0:00:15]} 56. Kb1 {[%clk 0:00:25.5]} 56... Kg6
{[%clk 0:00:13.2]} 57. Ka2 {[%clk 0:00:26.4]} 57... Kf7 {[%clk 0:00:07.7]} 58.
Ka3 {[%clk 0:00:26.4]} 58... Ke6 {[%clk 0:00:08.1]} 59. a5 {[%clk 0:00:26.5]}
59... bxa5 {[%clk 0:00:05.4]} 60. Ka4 {[%clk 0:00:26.9]} 60... Bd8 {[%clk
0:00:06.1]} 61. Ka3 {[%clk 0:00:27.1]} 61... Kf6 {[%clk 0:00:06.5]} 62. Ka4
{[%clk 0:00:28]} 62... Ke6 {[%clk 0:00:06.8]} 63. Ka3 {[%clk 0:00:26.5]} 63...
Kf6 {[%clk 0:00:07.1]} 64. Ka4 {[%clk 0:00:27.4]} 64... Ke6 {[%clk 0:00:06.5]}
1/2-1/2

[Event "*** Titled Tuesday Blitz"]
[Site "Chess.com"]
[Date "2021.03.02"]
[Round "9"]
[White "gisela_roque"]
[Black "marvinguevara"]
[Result "1-0"]
[WhiteElo "1768"]
[BlackElo "2097"]
[TimeControl "180+1"]
[EndTime "11:48:04 PST"]
[Termination "gisela_roque won on time"]

1. c4 {[%clk 0:03:00.9]} 1... e5 {[%clk 0:02:37.6]} 2. Nc3 {[%clk 0:02:54.5]}
2... Nc6 {[%clk 0:02:36.4]} 3. Nf3 {[%clk 0:02:36.6]} 3... f5 {[%clk 0:02:35.7]}
4. d3 {[%clk 0:02:28.8]} 4... Nf6 {[%clk 0:02:33.8]} 5. Bg5 {[%clk 0:02:22.1]}
5... h6 {[%clk 0:02:26.6]} 6. Bd2 {[%clk 0:02:09.5]} 6... Bc5 {[%clk 0:02:23.9]}
7. g3 {[%clk 0:02:09.1]} 7... O-O {[%clk 0:02:20]} 8. Bg2 {[%clk 0:02:09]} 8...
e4 {[%clk 0:02:17.3]} 9. dxe4 {[%clk 0:02:03.7]} 9... fxe4 {[%clk 0:02:17.2]}
10. Nh4 {[%clk 0:02:03.6]} 10... e3 {[%clk 0:02:16.3]} 11. Bxe3 {[%clk
0:02:01.6]} 11... Bxe3 {[%clk 0:02:15]} 12. fxe3 {[%clk 0:02:02]} 12... Ng4
{[%clk 0:02:12.3]} 13. Bd5+ {[%clk 0:01:56.1]} 13... Rf7 {[%clk 0:01:50]} 14.
Bxf7+ {[%clk 0:01:53.7]} 14... Kxf7 {[%clk 0:01:49.3]} 15. Qd5+ {[%clk 0:01:51]}
15... Kf8 {[%clk 0:01:43.7]} 16. Qf5+ {[%clk 0:01:51]} 16... Nf6 {[%clk
0:01:42.2]} 17. O-O-O {[%clk 0:01:42.7]} 17... d6 {[%clk 0:01:36.5]} 18. Qf3
{[%clk 0:01:36.6]} 18... Bg4 {[%clk 0:01:34.2]} 19. Qf2 {[%clk 0:01:27.5]} 19...
Ne5 {[%clk 0:01:28.4]} 20. h3 {[%clk 0:01:25.5]} 20... Be6 {[%clk 0:01:21.3]}
21. b3 {[%clk 0:01:24.3]} 21... Kg8 {[%clk 0:01:18.8]} 22. Rhf1 {[%clk
0:01:16.9]} 22... a5 {[%clk 0:01:11.5]} 23. g4 {[%clk 0:01:15.6]} 23... Nh7
{[%clk 0:01:07.4]} 24. Nf3 {[%clk 0:01:09.3]} 24... Nc6 {[%clk 0:01:01.4]} 25.
Nd4 {[%clk 0:01:08.6]} 25... Bd7 {[%clk 0:00:56.6]} 26. Qf7+ {[%clk 0:01:06.7]}
26... Kh8 {[%clk 0:00:52.6]} 27. Nf5 {[%clk 0:00:50.3]} 27... Bxf5 {[%clk
0:00:48.8]} 28. Rxf5 {[%clk 0:00:51.2]} 28... Ng5 {[%clk 0:00:41]} 29. Qh5
{[%clk 0:00:41]} 29... Nh7 {[%clk 0:00:31]} 30. Rdf1 {[%clk 0:00:38.5]} 30...
Qe8 {[%clk 0:00:26.3]} 31. Qxe8+ {[%clk 0:00:29.6]} 31... Rxe8 {[%clk
0:00:27.2]} 32. e4 {[%clk 0:00:27]} 32... Nf6 {[%clk 0:00:24.5]} 33. Nd5 {[%clk
0:00:16.4]} 33... Nxe4 {[%clk 0:00:17]} 34. Rf8+ {[%clk 0:00:11.6]} 34... Rxf8
{[%clk 0:00:16.2]} 35. Rxf8+ {[%clk 0:00:12.5]} 35... Kh7 {[%clk 0:00:16.5]} 36.
Nxc7 {[%clk 0:00:12.2]} 36... Ng5 {[%clk 0:00:14.7]} 37. h4 {[%clk 0:00:11.2]}
37... Ne4 {[%clk 0:00:11]} 38. Ne6 {[%clk 0:00:11]} 38... Ne5 {[%clk 0:00:06.8]}
39. Re8 {[%clk 0:00:09.1]} 39... Nf6 {[%clk 0:00:05.7]} 40. Re7 {[%clk
0:00:08.9]} 40... Nfxg4 {[%clk 0:00:04.7]} 41. Rxg7+ {[%clk 0:00:08.5]} 41...
Kh8 {[%clk 0:00:05.2]} 42. Rxb7 {[%clk 0:00:08.2]} 42... Ne3 {[%clk 0:00:04.9]}
43. Ra7 {[%clk 0:00:07.4]} 43... a4 {[%clk 0:00:04]} 44. Rxa4 {[%clk 0:00:07]}
44... Nf5 {[%clk 0:00:04.5]} 45. Ra5 {[%clk 0:00:06.3]} 45... Nxh4 {[%clk
0:00:04.1]} 46. Kc2 {[%clk 0:00:03.3]} 46... Nf5 {[%clk 0:00:03.4]} 47. Kc3
{[%clk 0:00:03.2]} 47... Ne7 {[%clk 0:00:02.2]} 48. b4 {[%clk 0:00:02.8]} 1-0